bitfinex-derivatives/quotes_SOLF0:USTF0_20250228
["timestamp","ask_amount","ask_price","bid_price","bid_amount"]
[1740708500182,7.5626,132.32,132.26,7.5654]
[1740708500388,0.0534471,132.26,132.23,0.05198111]
[1740708500587,1.33838176,132.35,132.23,0.05198111]
[1740708500787,1.33838176,132.35,132.24,7.567]
[1740708501086,1.33838176,132.35,132.23,49.54214807]
[1740708501287,1.33838176,132.35,132.24,3.9384]
[1740708501487,16.42,132.36,132.24,3.9384]
[1740708501781,0.04861114,132.31,132.28,0.05396519]
[1740708502184,0.04861114,132.31,132.28,49.54214807]
[1740708502387,0.04861114,132.31,132.28,0.05322994]
[1740708502781,0.04861114,132.31,132.28,49.59537801]
[1740708502991,0.04861114,132.31,132.28,0.05322994]
[1740708503386,7.5642,132.3,132.28,0.05322994]
[1740708503889,0.04861114,132.31,132.28,0.05322994]
[1740708504584,0.04861114,132.31,132.28,7.61792994]
[1740708504780,0.04861114,132.31,132.28,0.05322994]
[1740708505688,7.5642,132.3,132.28,0.05322994]
[1740708505890,0.04861114,132.31,132.28,0.05322994]
[1740708506279,7.5641,132.3,132.28,0.05322994]
[1740708506587,0.04861114,132.31,132.28,0.05322994]
[1740708506980,0.04861114,132.31,132.22,11.7103]
[1740708507187,7.5654,132.28,132.22,61.25244807]
[1740708507385,7.5654,132.28,132.22,11.7103]
[1740708507687,7.5654,132.27,132.22,11.7103]
[1740708507887,1.51160154,132.31,132.22,57.29804807]
[1740708508084,1.33853659,132.3,132.22,57.29804807]
[1740708508291,7.62121822,132.28,132.25,0.0559497]
[1740708508484,0.05591822,132.28,132.25,0.0559497]
[1740708508888,7.566,132.26,132.25,0.0559497]
[1740708509084,23.966,132.26,132.25,0.0559497]
[1740708509289,16.4,132.26,132.25,0.0559497]
[1740708510285,16.4,132.26,132.22,3.7778]
[1740708510286,7.5688,132.22,132.12,4.085]
[1740708510487,17.73836615,132.26,132.13,3.9973]
[1740708510488,16.4,132.26,132.13,3.9973]
[1740708510690,2.85014842,132.25,132.12,53.62714807]
[1740708510892,2.85026278,132.24,132.12,53.62714807]
[1740708511091,1.33786109,132.23,132.12,53.62714807]
[1740708511390,7.5712,132.17,132.12,53.62714807]
[1740708511589,16.4,132.17,132.16,0.04811791]
[1740708511793,16.4,132.17,132.12,4.085]
[1740708511989,1.51263046,132.22,132.15,0.05689337]
[1740708511990,0.05004775,132.18,132.15,0.05689337]
[1740708512390,1.51263046,132.22,132.15,0.05689337]
[1740708512592,9.08103046,132.22,132.15,7.62869337]
[1740708512789,1.51263046,132.22,132.15,0.05689337]
[1740708513285,205.84,132.27,132.15,0.05689337]
[1740708513491,205.84,132.27,132.15,22.75689337]
[1740708513692,205.84,132.27,132.12,4.085]
[1740708514290,205.84,132.27,132.12,53.62706309]
[1740708514795,205.84,132.27,132.18,0.05565254]
[1740708514796,0.04814089,132.21,132.18,0.05565254]
[1740708514989,205.84,132.27,132.18,0.05565254]
[1740708515188,205.84,132.27,132.18,49.54206309]
[1740708515695,7.569,132.21,132.18,49.54206309]
[1740708515996,205.84,132.27,132.18,49.54206309]
[1740708516191,0.05327457,132.21,132.18,49.59324661]
[1740708516391,1.33637697,132.26,132.12,4.085]
[1740708516596,1.33637697,132.26,132.18,0.05791496]
[1740708516597,0.05346216,132.21,132.18,0.05791496]
[1740708516796,0.05346216,132.21,132.12,53.62706309]
[1740708517095,1.33637697,132.26,132.12,53.62706309]
[1740708517096,16.4,132.22,132.18,0.04971355]
[1740708517299,0.04932539,132.18,132.12,53.62706309]
[1740708517591,16.4,132.22,132.12,53.62706309]
[1740708517592,16.4,132.22,132.12,4.085]
[1740708517788,16.4,132.22,132.14,0.05812178]
[1740708517995,16.4,132.22,132.12,4.085]
[1740708518301,16.4,132.22,132.12,53.62703357]
[1740708518992,16.4,132.22,132.16,7.62687305]
[1740708519190,16.4,132.22,132.16,0.05547305]
[1740708519390,16.4,132.22,132.16,49.59750662]
[1740708519595,7.5694,132.2,132.16,49.59750662]
[1740708519791,16.4,132.22,132.16,0.05547305]
[1740708519994,16.4,132.22,132.16,49.59750662]
[1740708520194,16.4,132.22,132.16,0.05547305]
[1740708520495,16.4,132.25,132.16,0.05547305]
[1740708520697,7.5685,132.22,132.16,49.54203357]
[1740708520899,16.4,132.25,132.19,0.0493729]
[1740708521099,1.33579484,132.24,132.12,4.085]
[1740708521300,1.33579484,132.24,132.12,53.62703357]
[1740708521504,16.5032,132.23,132.12,4.085]
[1740708521703,1.33579484,132.22,132.12,4.085]
[1740708521994,16.4,132.23,132.12,4.085]
[1740708522307,0.05352088,132.18,132.16,0.05570091]
[1740708522504,16.4,132.23,132.16,0.05570091]
[1740708522700,0.04979545,132.18,132.16,0.05570091]
[1740708523003,16.4,132.23,132.16,0.05570091]
[1740708523397,10.40125042,132.24,132.16,0.05570091]
[1740708523599,10.40125042,132.24,132.12,4.085]
[1740708523909,10.40125042,132.24,132.21,7.5683]
[1740708524108,10.40125042,132.24,132.17,0.05756808]
[1740708524402,205.84,132.27,132.19,0.05483127]
[1740708524809,205.84,132.27,132.12,4.085]
[1740708525006,205.84,132.27,132.22,0.05586791]
[1740708525207,205.84,132.27,132.12,4.085]
[1740708525407,205.84,132.27,132.23,0.05505501]
[1740708525704,205.84,132.27,132.21,7.5684]
[1740708525906,205.84,132.27,132.24,0.0539246]
[1740708526104,7.5665,132.25,132.18,7.5702]
[1740708526301,7.5665,132.25,132.12,53.62703357]
[1740708526302,205.84,132.27,132.12,53.62703357]
[1740708526509,205.84,132.27,132.18,0.04780665]
[1740708526907,1.33510811,132.26,132.21,0.04850959]
[1740708527108,7.5667,132.25,132.12,4.085]
[1740708527308,205.84,132.27,132.12,4.085]
[1740708527605,7.566,132.26,132.21,7.5688]
[1740708527805,205.84,132.27,132.18,0.05088022]
[1740708528013,205.84,132.27,132.12,4.085]
[1740708528212,205.84,132.27,132.21,0.05067425]
[1740708528408,10.40125042,132.3,132.12,199.085]
[1740708528611,10.40125042,132.3,132.23,0.05213964]
[1740708528809,10.40125042,132.3,132.13,1.38561341]
[1740708529008,10.40125042,132.3,132.14,15.1448]
[1740708529311,10.40125042,132.3,132.26,7.5659]
[1740708529811,10.40125042,132.3,132.27,7.5653]
[1740708530002,10.40125042,132.3,132.27,0.05161963]
[1740708530203,10.40125042,132.3,132.27,49.5936532]
[1740708530408,10.40125042,132.3,132.27,0.05161963]
[1740708530608,10.40125042,132.3,132.27,49.5936532]
[1740708530813,16.4,132.33,132.27,49.5936532]
[1740708531516,16.4,132.33,132.27,0.05161963]
[1740708531708,1.33651787,132.32,132.27,0.05161963]
[1740708532111,1.33651787,132.32,132.12,4.085]
[1740708532415,0.1523,132.31,132.12,53.62703357]
[1740708532613,1.33651787,132.3,132.12,53.62703357]
[1740708533009,7.5674,132.24,132.18,7.5705]
[1740708533311,0.05487104,132.22,132.2,0.04984543]
[1740708533504,7.5677,132.23,132.12,53.62703357]
[1740708533706,16.4,132.24,132.17,7.571]
[1740708533907,0.05480192,132.22,132.2,0.05555321]
[1740708534105,7.5684,132.22,132.16,7.5715]
[1740708534304,7.62528534,132.22,132.2,0.05507747]
[1740708534909,7.5688,132.21,132.2,0.05507747]
[1740708535513,0.05688534,132.22,132.2,0.05507747]
[1740708536809,0.05688534,132.22,132.2,49.59711104]
[1740708537009,0.05688534,132.22,132.2,0.05507747]
[1740708537207,7.62558534,132.22,132.2,0.05507747]
[1740708537407,0.05688534,132.22,132.2,0.05507747]
[1740708537612,0.05688534,132.22,132.12,4.085]
[1740708537810,0.05688534,132.22,132.12,53.62703357]
[1740708538013,79.83044474,132.24,132.14,7.5727]
[1740708538209,38.22299539,132.24,132.14,7.5727]
[1740708538415,16.4,132.24,132.14,57.11473357]
[1740708538817,0.05610089,132.2,132.18,0.05002598]
[1740708539214,0.05610089,132.2,132.12,4.085]
[1740708539420,0.05610089,132.2,132.12,53.62703357]
[1740708539720,1.3354665,132.23,132.12,61.20063357]
[1740708539919,1.3354665,132.23,132.12,53.62703357]
[1740708540318,1.3354665,132.23,132.1,46.28]
[1740708540617,0.04762357,132.19,132.16,0.05236133]
[1740708540923,7.5721,132.16,132.1,53.855]
[1740708541120,0.04762357,132.19,132.1,53.855]
[1740708541316,41.60744935,132.21,132.1,53.855]
[1740708541620,41.60744935,132.21,132.11,7.5744]
[1740708541621,1.33495379,132.2,132.11,7.5744]
[1740708541820,7.5703,132.19,132.1,46.28]
[1740708542012,41.60744935,132.21,132.14,0.05160953]
[1740708542013,0.05775597,132.17,132.14,0.05160953]
[1740708542213,58.00744935,132.21,132.14,0.05160953]
[1740708542729,58.00744935,132.21,132.16,7.5713]
[1740708543023,58.00744935,132.21,132.14,49.54203357]
[1740708543420,0.04849288,132.19,132.16,0.04964169]
[1740708544522,0.04849288,132.19,132.16,7.62104169]
[1740708544718,0.04849288,132.19,132.16,0.04964169]
[1740708545029,0.04849288,132.19,132.16,49.59167526]
[1740708545323,0.04849288,132.19,132.16,0.04964169]
[1740708546125,10.40125042,132.23,132.16,0.04964169]
[1740708546525,10.40125042,132.23,132.18,7.5705]
[1740708546823,10.40125042,132.23,132.16,49.54203357]
[1740708547025,7.5684,132.22,132.11,11.903]
[1740708547225,0.04763477,132.21,132.18,0.0481503]
[1740708547426,10.40125042,132.22,132.11,61.44503357]
[1740708547630,0.05364376,132.21,132.18,0.04763485]
[1740708547821,10.40125042,132.22,132.11,61.44503357]
[1740708548021,1.39033539,132.21,132.18,0.05813113]
[1740708548221,1.33460013,132.21,132.11,19.4774]
[1740708548417,1.33460013,132.21,132.11,69.01943357]
[1740708548825,1.33460013,132.21,132.11,61.44503357]
[1740708549427,0.04943136,132.17,132.15,0.0571454]
[1740708549826,7.5717,132.16,132.15,0.0571454]
[1740708551327,7.5717,132.16,132.06,4.1138]
[1740708551328,24.0345749,132.16,132.06,4.1138]
[1740708551531,1.3345749,132.15,132.06,53.65583357]
[1740708551725,7.5747,132.11,132.06,53.65583357]
[1740708552233,7.5756,132.1,132.06,4.1138]
[1740708552533,0.05391223,132.1,132.07,0.05438087]
[1740708553431,16.43391223,132.1,132.07,0.05438087]
[1740708553732,7.5763,132.08,132.07,0.05438087]
[1740708554828,16.43391223,132.1,131.99,3.8188]
[1740708555033,1.33355125,132.09,132.03,53.01]
[1740708555333,16.38,132.1,132.03,53.01]
[1740708555528,7.5778,132.06,132.03,53.01]
[1740708555733,16.38,132.1,132.03,53.01]
[1740708556333,0.05419435,132.08,132.05,0.05011729]
[1740708557735,7.5769,132.07,132.05,0.05011729]
[1740708558538,7.63069435,132.08,132.05,49.59215086]
[1740708559032,7.5774,132.06,132.05,0.05011729]
[1740708559835,7.5774,132.06,132.05,1.729e-05]
[1740708562132,0.05419435,132.08,132.05,1.729e-05]
[1740708564237,7.63059435,132.08,132.05,49.54205086]
[1740708564543,247.56744935,132.13,132.05,1.729e-05]
[1740708564733,35.36964935,132.13,132.05,1.5145951]
[1740708564933,35.36964935,132.13,132.05,1.51457781]
[1740708565441,35.36964935,132.13,132.05,51.05661138]
[1740708565636,0.05688165,132.1,132.08,7.62693189]
[1740708565837,35.36964935,132.13,132.08,0.05113189]
[1740708566140,35.36964935,132.13,132.08,49.59316546]
[1740708566338,22.89714935,132.13,132.08,0.05113189]
[1740708567041,0.05566165,132.12,132.08,0.05113189]
[1740708567243,0.05566165,132.12,132.09,7.5756]
[1740708567443,0.05566165,132.12,132.08,49.54203357]
[1740708567644,0.05566165,132.12,132.09,0.0517081]
[1740708568046,0.05566165,132.12,132.09,49.59374167]
[1740708568346,82.39821,132.2,132.09,0.0517081]
[1740708568845,82.39821,132.2,132.09,49.54203357]
[1740708569046,1.33377604,132.17,132.05,1.51457781]
[1740708569443,7.5735,132.13,132.07,7.5764]
[1740708569647,0.0566943,132.12,132.1,0.05725134]
[1740708570047,1.33377893,132.17,132.1,49.54203357]
[1740708570339,0.05417988,132.12,132.1,0.05268972]
[1740708570543,1.33377893,132.17,132.1,0.05268972]
[1740708570845,0.05578828,132.15,132.1,0.05268972]
[1740708571145,7.5745,132.11,132.1,0.05268972]
[1740708571346,23.9783,132.14,131.94,3.8393]
[1740708571549,1.33471921,132.13,131.95,1.51572565]
[1740708571747,7.5762,132.09,131.95,1.51572565]
[1740708572046,23.9783,132.14,131.95,1.51572565]
[1740708572242,1.33472665,132.13,131.95,1.51572565]
[1740708572445,0.05300187,132.06,132.03,0.05766931]
[1740708572949,0.05358017,132.06,132.03,49.59760077]
[1740708573348,0.05358017,132.06,132.03,0.0555672]
[1740708573747,7.63118017,132.06,132.03,0.0555672]
[1740708573945,0.05358017,132.06,132.03,0.0555672]
[1740708574148,7.63138017,132.06,132.03,0.0555672]
[1740708574447,0.05358017,132.06,132.03,49.59760077]
[1740708574841,7.5786,132.04,132.03,0.0555672]
[1740708575045,0.05358017,132.06,132.03,0.0555672]
[1740708575842,7.63148017,132.06,132.03,49.59760077]
[1740708576042,0.05358017,132.06,132.03,49.59760077]
[1740708577247,7.5784,132.05,132.03,49.59760077]
[1740708577547,0.05358017,132.06,132.03,49.59760077]
[1740708577944,7.5786,132.04,132.03,49.59760077]
[1740708578140,0.05358017,132.06,132.03,49.59760077]
[1740708578348,0.05358017,132.06,132.03,0.0555672]
[1740708578555,7.63138017,132.06,132.03,0.0555672]
[1740708578745,0.05358017,132.06,132.03,0.0555672]
[1740708579149,7.5786,132.04,132.03,49.59760077]
[1740708579545,7.5782,132.05,132.03,49.59760077]
[1740708580146,7.5785,132.05,132.03,49.59760077]
[1740708580346,0.05358017,132.06,132.03,0.0555672]
[1740708580546,206.08,132.1,132.03,0.0555672]
[1740708580748,7.5757,132.09,132.03,0.0555672]
[1740708581457,206.08,132.1,132.03,49.59760077]
[1740708581748,206.08,132.1,132.04,4.0069]
[1740708581749,0.05075752,132.07,132.04,4.0069]
[1740708582249,0.05075752,132.07,132.04,53.60575555]
[1740708582451,206.08,132.1,132.04,53.60575555]
[1740708582649,206.08,132.1,132.04,4.06372198]
[1740708582845,199.8402,132.1,132.04,4.06372198]
[1740708583152,7.5735,132.13,132.04,4.06372198]
[1740708583453,98.77821,132.17,132.04,4.0069]
[1740708583650,0.05344275,132.1,132.07,7.62606794]
[1740708583956,98.77821,132.17,132.04,53.54893357]
[1740708584256,1.3387357,132.16,132.04,53.54893357]
[1740708585059,0.05081114,132.11,132.09,0.05196144]
[1740708585352,7.5751,132.1,132.09,0.05196144]
[1740708586058,0.0512144,132.11,131.95,1.51572565]
[1740708586359,1.33830411,132.16,131.96,3.9315]
[1740708586753,1.33830411,132.16,131.96,53.47353357]
[1740708586954,1.33831065,132.15,131.96,53.47353357]
[1740708587256,0.04878733,132.07,132.05,0.05082921]
[1740708587452,1.33831065,132.13,131.96,3.9315]
[1740708587657,0.04779303,132.07,132.05,0.05076604]
[1740708587857,7.5768,132.08,131.97,5.33539594]
[1740708588062,0.0487685,132.07,132.05,0.05307073]
[1740708588260,16.38,132.17,132.02,7.5796]
[1740708588459,16.38,132.17,132.05,0.05276963]
[1740708588460,0.05741485,132.07,132.05,0.05276963]
[1740708588656,82.39821,132.1,132.05,0.05474015]
[1740708588853,82.39821,132.1,132.06,7.5772]
[1740708588854,0.05744645,132.07,132.06,7.5772]
[1740708589056,32.85617643,132.1,132.06,7.7494]
[1740708590062,2.01753273,132.1,132.06,7.7494]
[1740708590366,121.95719263,132.11,132.06,26.6843]
[1740708590664,121.95719263,132.11,132.1,7.5751]
[1740708590862,121.95719263,132.17,132.06,26.6843]
[1740708591166,121.95719263,132.17,132.07,1.51434845]
[1740708591359,121.95719263,132.17,132.11,7.574]
[1740708591561,121.95719263,132.17,132.1,0.05758238]
[1740708591763,7.5721,132.16,132.09,7.5753]
[1740708591961,7.5721,132.16,132.12,0.05406024]
[1740708592160,121.95719263,132.17,132.12,0.05406024]
[1740708592365,126.09659263,132.17,132.12,0.05406024]
[1740708592564,7.5734,132.13,132.12,0.05406024]
[1740708593859,8.1569,132.17,132.12,0.05406024]
[1740708594161,8.1569,132.17,132.07,1.51434845]
[1740708594358,1.34151606,132.16,132.07,1.51434845]
[1740708594565,7.575,132.11,132.07,1.51434845]
[1740708594764,16.36,132.11,132.07,1.51434845]
[1740708595058,16.36,132.11,131.99,41.13714442]
[1740708595263,0.05406024,132.1,132.08,0.05732771]
[1740708595462,16.36,132.11,132.0,1.51515151]
[1740708595660,0.05058342,132.1,132.08,0.05581477]
[1740708595861,16.36,132.11,132.03,7.5787]
[1740708596065,7.62814492,132.1,132.08,0.05160553]
[1740708596472,0.05304492,132.1,132.02,7.5795]
[1740708596770,16.36,132.11,132.0,1.51515151]
[1740708596964,7.5763,132.08,132.01,7.5801]
[1740708597373,16.36,132.11,132.01,7.5801]
[1740708597564,0.0533885,132.06,132.03,0.05055126]
[1740708597966,0.0533885,132.06,132.0,1.51515151]
[1740708598167,0.0533885,132.06,132.03,0.05170306]
[1740708598669,7.5784,132.05,132.03,0.05170306]
[1740708598971,0.0533885,132.06,132.03,0.05170306]
[1740708599474,0.0533885,132.06,131.9,10.34281309]
[1740708599666,0.0533885,132.06,131.9,11.85911331]
[1740708599667,1.34477326,132.06,131.9,11.85911331]
[1740708599975,7.5809,132.0,131.93,7.5848]
[1740708600165,16.36,132.01,131.9,11.85911331]
[1740708600563,0.04903906,131.97,131.94,0.0519099]
[1740708602868,0.04903906,131.97,131.91,51.59]
[1740708603264,0.04903906,131.97,131.91,20.377]
[1740708603565,0.04903906,131.97,131.86,41.13714442]
[1740708603965,3.9099,131.99,131.9,0.05698292]
[1740708604270,7.5875,131.89,131.86,41.13714442]
[1740708604466,23.9475,131.89,131.86,41.13714442]
[1740708604665,16.36,131.89,131.86,41.13714442]
[1740708604967,16.36,131.89,131.8,10.34281309]
[1740708605374,7.5901,131.84,131.83,3.21e-06]
[1740708605770,0.05543301,131.86,131.79,112.41066498]
[1740708605972,7.5924,131.8,131.79,112.41066498]
[1740708606171,23.9524,131.8,131.79,112.41066498]
[1740708606469,16.36,131.8,131.79,112.41066498]
[1740708606975,222.62,131.8,131.79,72.56696498]
[1740708607877,206.26,131.8,131.79,72.56696498]
[1740708608374,206.26,131.8,131.78,0.05228686]
[1740708608569,0.05108404,131.81,131.78,0.05228686]
[1740708608782,16.36,131.87,131.78,0.05228686]
[1740708609173,16.36,131.87,131.76,7.7908]
[1740708609371,16.36,131.87,131.77,1.51779615]
[1740708609678,31.47506133,131.98,131.78,16.36]
[1740708609873,31.47506133,131.98,131.81,0.05787341]
[1740708610072,31.47506133,131.98,131.91,7.5855]
[1740708610274,31.47506133,131.98,131.81,195.0]
[1740708610676,31.47506133,131.98,131.82,1.51722045]
[1740708610875,12.71516133,131.98,131.82,215.51722045]
[1740708611076,168.90132856,132.01,131.82,215.51722045]
[1740708611278,168.90132856,132.01,131.89,0.05090716]
[1740708611582,168.90132856,132.01,131.82,196.51722045]
[1740708611783,172.67982856,132.01,131.82,196.51722045]
[1740708612083,3.7785,132.01,131.82,196.51722045]
[1740708612481,3.489e-05,131.93,131.9,0.04994217]
[1740708612975,3.489e-05,131.93,131.82,196.51722045]
[1740708612976,3.7785,132.01,131.82,196.51722045]
[1740708613772,0.04953442,131.93,131.9,0.05584815]
[1740708614176,3.7785,132.01,131.82,196.51722045]
[1740708614380,0.04986264,131.93,131.9,0.04945153]
[1740708614783,3.7785,132.01,131.82,196.51722045]
[1740708614997,0.05715637,131.93,131.9,0.0517812]
[1740708615175,16.41715637,131.93,131.9,0.0517812]
[1740708620683,3.801,131.92,131.9,0.0517812]
[1740708622289,16.41715637,131.93,131.9,0.0517812]
[1740708623689,20.21815637,131.93,131.9,0.0517812]
[1740708624788,20.21815637,131.93,131.83,3.8555]
[1740708624789,7.586,131.91,131.83,3.8555]
[1740708624989,20.161,131.93,131.83,3.8555]
[1740708625584,20.161,131.93,131.84,7.59]
[1740708625784,20.161,131.93,131.83,3.8555]
[1740708625985,0.05784734,131.9,131.87,0.05130099]
[1740708626486,16.34,131.98,131.87,0.05130099]
[1740708626682,206.36,132.02,131.84,198.8634]
[1740708626889,16.34,132.01,131.84,198.8634]
[1740708627089,206.36,132.02,131.85,1.51687523]
[1740708627383,7.5804,132.01,131.85,1.51687523]
[1740708627582,206.36,132.02,131.85,1.51687523]
[1740708627796,0.05553473,131.95,131.92,0.04793677]
[1740708627993,206.36,132.02,131.92,0.04793677]
[1740708628193,206.36,132.02,131.85,196.51687523]
[1740708628389,206.36,132.02,131.95,7.5833]
[1740708628591,206.36,132.02,131.96,3.772]
[1740708629288,0.05461316,132.0,131.85,196.51687523]
[1740708629597,0.05461316,132.0,131.98,0.05520088]
[1740708629895,213.9398,132.02,131.86,3.772]
[1740708630199,206.36,132.02,131.87,1.51664518]
[1740708630496,0.04974615,131.95,131.93,0.05224644]
[1740708630693,206.36,132.02,131.93,0.05224644]
[1740708630898,7.5805,132.01,131.87,1.51664518]
[1740708631095,206.36,132.02,131.87,196.51664518]
[1740708631294,3.8096,132.06,131.87,196.51664518]
[1740708631791,3.8096,132.06,131.88,3.9363]
[1740708631993,210.3593,132.11,131.95,0.04871746]
[1740708632297,3.8096,132.1,131.96,1.51561079]
[1740708632594,3.8096,132.1,132.02,0.05023694]
[1740708632988,3.8096,132.1,131.97,3.9363]
[1740708633192,3.8096,132.1,132.05,0.05179569]
[1740708633394,3.8096,132.1,131.98,5.47908111]
[1740708633594,3.8096,132.1,132.06,6.707e-05]
[1740708633789,1.3470316,132.09,131.97,3.9363]
[1740708634902,0.05316321,132.04,132.02,0.05369831]
[1740708635100,16.32,132.03,131.89,4.0692]
[1740708635290,20.2066,132.03,131.9,1.51630022]
[1740708635492,16.32,132.03,131.9,1.51630022]
[1740708635898,16.32,132.03,131.91,4.0142]
[1740708636401,0.05635074,131.98,131.96,0.05131108]
[1740708636695,16.32,132.03,131.99,7.5814]
[1740708637197,16.32,132.03,131.97,4.0979]
[1740708637591,16.32,132.03,131.91,4.0142]
[1740708637793,3.9669,132.02,131.91,4.0142]
[1740708637999,7.63223492,132.01,131.99,0.04864466]
[1740708638197,3.9669,132.02,131.91,4.0142]
[1740708639304,0.05232481,131.98,131.95,0.05304402]
[1740708639597,0.05232481,131.98,131.95,7.63634402]
[1740708640299,0.05232481,131.98,131.95,0.05304402]
[1740708644404,7.63442481,131.98,131.95,0.05304402]
[1740708644600,0.05232481,131.98,131.95,0.05304402]
[1740708644998,0.05232481,131.98,131.81,3.9944]
[1740708645201,1.40069411,131.98,131.81,11.9151]
[1740708645396,1.3483693,131.98,131.81,11.9151]
[1740708645800,206.24,131.99,131.82,1.51722045]
[1740708646303,0.05527776,131.92,131.89,0.04880622]
[1740708646699,16.32,131.94,131.82,1.51722045]
[1740708646899,0.04908856,131.92,131.89,0.05519451]
[1740708647203,3.8736,131.93,131.89,0.05519451]
[1740708647404,0.04931961,131.92,131.89,0.05519451]
[1740708648903,4.13181961,131.92,131.89,0.05519451]
[1740708649098,7.5866,131.9,131.89,0.05519451]
[1740708649305,4.13181961,131.92,131.82,9.10832045]
[1740708649306,4.13181961,131.92,131.82,1.51722045]
[1740708649704,4.0825,131.92,131.82,1.51722045]
[1740708650109,7.5868,131.9,131.83,7.5902]
[1740708650300,7.5868,131.9,131.82,1.51722045]
[1740708650504,0.05460573,131.88,131.86,0.04957856]
[1740708652303,0.05460573,131.88,131.78,7.5931]
[1740708652304,7.5899,131.85,131.78,7.5931]
[1740708652608,16.3,131.85,131.72,7.5647]
[1740708652905,7.5927,131.8,131.73,11.3836]
[1740708653401,0.05747037,131.78,131.73,11.3836]
[1740708653607,0.05747037,131.78,131.75,0.05097459]
[1740708653900,0.05747037,131.78,131.75,0.05357635]
[1740708654909,7.5954,131.75,131.66,3.8051]
[1740708655105,23.8954,131.75,131.66,3.8051]
[1740708655408,16.3,131.75,131.66,3.8051]
[1740708656009,7.5972,131.72,131.66,3.8051]
[1740708656208,0.05490642,131.72,131.69,0.05732164]
[1740708657203,7.65230642,131.72,131.69,0.05732164]
[1740708658011,7.5976,131.71,131.69,0.05732164]
[1740708658904,7.5976,131.71,131.63,7.602]
[1740708659108,7.5976,131.71,131.66,41.21]
[1740708659407,7.5971,131.72,131.66,41.21]
[1740708660309,0.04922415,131.7,131.68,0.05106503]
[1740708662208,206.54,131.85,131.68,22.83106503]
[1740708662409,41.64102677,131.87,131.68,0.05106503]
[1740708662611,41.64102677,131.87,131.69,4.0656]
[1740708662817,41.64102677,131.87,131.7,4.134]
[1740708663417,0.05792978,131.8,131.77,0.05017587]
[1740708663916,0.05792978,131.8,131.71,1.51848758]
[1740708663917,16.32,131.83,131.71,1.51848758]
[1740708664120,7.5934,131.79,131.77,0.04840971]
[1740708664313,3.9811,131.82,131.77,0.04840971]
[1740708664314,8.0132,131.82,131.77,0.04840971]
[1740708664611,0.05452812,131.79,131.77,0.04840971]
[1740708664811,0.05452812,131.79,131.71,1.51848758]
[1740708665111,218.524,131.82,131.71,1.51848758]
[1740708665913,0.05778688,131.78,131.75,0.05051727]
[1740708666118,0.05778688,131.78,131.71,1.51848758]
[1740708666617,0.05778688,131.78,131.66,41.21]
[1740708667017,7.5951,131.76,131.67,7.5998]
[1740708667218,0.05141423,131.73,131.71,0.04964091]
[1740708667523,7.5937,131.78,131.69,7.5982]
[1740708667714,0.05437269,131.73,131.71,0.0505449]
[1740708667918,218.524,131.82,131.66,41.21]
[1740708668219,0.05143987,131.73,131.71,0.05310308]
[1740708668616,0.05069378,131.73,131.71,0.04980069]
[1740708669217,7.64719378,131.73,131.71,0.04980069]
[1740708670023,0.05069378,131.73,131.71,0.04980069]
[1740708672127,7.5919,131.81,131.74,7.5957]
[1740708672432,218.524,131.82,131.66,41.21]
[1740708672636,218.524,131.82,131.67,1.51894888]
[1740708673128,218.524,131.82,131.66,41.21]
[1740708673328,0.0479362,131.76,131.66,41.21]
[1740708673533,0.0479362,131.76,131.73,4.542e-05]
[1740708673728,190.0,131.81,131.66,41.21]
[1740708674030,7.598,131.71,131.66,41.21]
[1740708674232,16.3,131.73,131.66,41.21]
[1740708674433,7.9813,131.72,131.66,41.21]
[1740708674930,0.04949167,131.7,131.68,0.04808596]
[1740708675931,7.5987,131.69,131.68,0.04808596]
[1740708676326,190.0,131.68,131.53,4.0028]
[1740708676634,7.6029,131.62,131.53,4.0028]
[1740708676834,23.9029,131.62,131.53,4.0028]
[1740708677432,0.05821902,131.59,131.56,0.05675912]
[1740708679733,0.05821902,131.59,131.56,7.66265912]
[1740708680531,16.3,131.68,131.56,22.85675912]
[1740708680730,16.3,131.68,131.56,0.05675912]
[1740708680928,16.3,131.68,131.64,7.601]
[1740708681128,16.3,131.75,131.57,196.52010336]
[1740708681330,16.3,131.75,131.58,1.51998784]
[1740708681535,16.3,131.75,131.7,7.598]
[1740708682136,0.05483854,131.74,131.66,7.9943]